[Event "*** SCC Grand Prix: Titled Tuesday Blitz"]
[Site "Chess.com"]
[Date "2020.06.23"]
[Round "1"]
[White "Reader777"]
[Black "goofypenguin96"]
[Result "1-0"]
[WhiteElo "2677"]
[BlackElo "2344"]
[TimeControl "180+1"]
[EndTime "10:07:14 PDT"]
[Termination "Reader777 won on time"]

1. d4 {[%clk 0:03:00.9]} 1... d5 {[%clk 0:02:57.5]} 2. c4 {[%clk 0:02:59.8]}
2... c6 {[%clk 0:02:57.7]} 3. Nf3 {[%clk 0:02:59.3]} 3... Nf6 {[%clk 0:02:57.6]}
4. Nc3 {[%clk 0:02:59.5]} 4... g6 {[%clk 0:02:57.7]} 5. e3 {[%clk 0:02:58.7]}
5... Bg7 {[%clk 0:02:57.9]} 6. Be2 {[%clk 0:02:59]} 6... O-O {[%clk 0:02:57.8]}
7. O-O {[%clk 0:02:59.2]} 7... Ne4 {[%clk 0:02:51.5]} 8. cxd5 {[%clk 0:02:55.3]}
8... Nxc3 {[%clk 0:02:50.5]} 9. bxc3 {[%clk 0:02:54.9]} 9... cxd5 {[%clk
0:02:50.4]} 10. Rb1 {[%clk 0:02:54.6]} 10... Nc6 {[%clk 0:02:49.5]} 11. Qa4
{[%clk 0:02:50.3]} 11... Qc7 {[%clk 0:02:46.1]} 12. Ba3 {[%clk 0:02:44.6]} 12...
Bf5 {[%clk 0:02:44.9]} 13. Rbc1 {[%clk 0:02:42.5]} 13... Rfc8 {[%clk 0:02:38.7]}
14. c4 {[%clk 0:02:40.4]} 14... dxc4 {[%clk 0:02:34]} 15. Bxc4 {[%clk
0:02:40.2]} 15... Qd7 {[%clk 0:02:31.9]} 16. Bb5 {[%clk 0:02:26.9]} 16... Be4
{[%clk 0:02:11.2]} 17. Ne5 {[%clk 0:02:19.9]} 17... Bxe5 {[%clk 0:02:01]} 18.
dxe5 {[%clk 0:02:19.6]} 18... a6 {[%clk 0:01:50.9]} 19. Be2 {[%clk 0:02:09]}
19... Bf5 {[%clk 0:01:38.8]} 20. Rfd1 {[%clk 0:01:54.8]} 20... Qc7 {[%clk
0:01:27.2]} 21. f4 {[%clk 0:01:48.9]} 21... Qb6 {[%clk 0:01:18.5]} 22. Qb3
{[%clk 0:01:37.7]} 22... Qxb3 {[%clk 0:01:09.6]} 23. axb3 {[%clk 0:01:37.9]}
23... Na5 {[%clk 0:00:50.2]} 24. Bxe7 {[%clk 0:01:21]} 24... Nxb3 {[%clk
0:00:46.1]} 25. Rxc8+ {[%clk 0:01:20.3]} 25... Rxc8 {[%clk 0:00:47]} 26. Bc4
{[%clk 0:01:06.8]} 26... Na5 {[%clk 0:00:12.9]} 27. Bd5 {[%clk 0:01:05.9]} 27...
Be6 {[%clk 0:00:11.6]} 28. Be4 {[%clk 0:00:58.5]} 28... b5 {[%clk 0:00:09.5]}
29. Ra1 {[%clk 0:00:57.1]} 29... Nb3 {[%clk 0:00:09]} 30. Rxa6 {[%clk 0:00:56]}
30... Nc5 {[%clk 0:00:09.3]} 31. Bxc5 {[%clk 0:00:46]} 31... Rxc5 {[%clk
0:00:10.2]} 32. Rb6 {[%clk 0:00:46.3]} 32... Kg7 {[%clk 0:00:10.1]} 33. Kf2
{[%clk 0:00:44.3]} 33... Bc4 {[%clk 0:00:08.2]} 34. Rb7 {[%clk 0:00:43.4]} 34...
Be6 {[%clk 0:00:05.5]} 35. h3 {[%clk 0:00:42.1]} 35... Bd5 {[%clk 0:00:05.3]}
36. Bxd5 {[%clk 0:00:41.5]} 36... Rxd5 {[%clk 0:00:06.2]} 37. e6 {[%clk
0:00:42.2]} 37... Rd2+ {[%clk 0:00:04.9]} 38. Kf3 {[%clk 0:00:42]} 38... Rb2
{[%clk 0:00:04.8]} 39. Rxf7+ {[%clk 0:00:41.3]} 39... Kg8 {[%clk 0:00:04.5]} 40.
Rb7 {[%clk 0:00:41.7]} 40... b4 {[%clk 0:00:04.2]} 41. g4 {[%clk 0:00:42.2]}
41... b3 {[%clk 0:00:04]} 42. Ke4 {[%clk 0:00:42.2]} 42... Rb1 {[%clk
0:00:04.2]} 43. Ke5 {[%clk 0:00:41.9]} 43... b2 {[%clk 0:00:02.3]} 44. Kf6
{[%clk 0:00:41.6]} 1-0

[Event "*** SCC Grand Prix: Titled Tuesday Blitz"]
[Site "Chess.com"]
[Date "2020.06.23"]
[Round "1"]
[White "Karateloru"]
[Black "Anastasia_Nesytova"]
[Result "1-0"]
[WhiteElo "2619"]
[BlackElo "2305"]
[TimeControl "180+1"]
[EndTime "10:07:16 PDT"]
[Termination "Karateloru won by resignation"]

1. e4 {[%clk 0:03:00.9]} 1... c6 {[%clk 0:02:59.8]} 2. Nc3 {[%clk 0:02:58.3]}
2... d5 {[%clk 0:03:00.4]} 3. Nf3 {[%clk 0:02:58.5]} 3... Bg4 {[%clk 0:03:01]}
4. h3 {[%clk 0:02:55.8]} 4... Bxf3 {[%clk 0:03:00.9]} 5. Qxf3 {[%clk 0:02:56.7]}
5... e6 {[%clk 0:03:01.8]} 6. Be2 {[%clk 0:02:55.8]} 6... Nf6 {[%clk 0:03:01.5]}
7. O-O {[%clk 0:02:55.6]} 7... Bc5 {[%clk 0:03:01.5]} 8. Rd1 {[%clk 0:02:55.4]}
8... Be7 {[%clk 0:02:57.1]} 9. d4 {[%clk 0:02:53.1]} 9... dxe4 {[%clk
0:02:53.6]} 10. Nxe4 {[%clk 0:02:52.4]} 10... Nxe4 {[%clk 0:02:53.9]} 11. Qxe4
{[%clk 0:02:53.3]} 11... Nd7 {[%clk 0:02:52.3]} 12. c4 {[%clk 0:02:50.9]} 12...
Nf6 {[%clk 0:02:52.4]} 13. Qf3 {[%clk 0:02:51.1]} 13... O-O {[%clk 0:02:51.7]}
14. Bf4 {[%clk 0:02:49.1]} 14... Qb6 {[%clk 0:02:51]} 15. b3 {[%clk 0:02:48]}
15... Rfd8 {[%clk 0:02:50.6]} 16. Be5 {[%clk 0:02:48]} 16... a5 {[%clk
0:02:50.6]} 17. Bd3 {[%clk 0:02:44]} 17... a4 {[%clk 0:02:48.3]} 18. Bc2 {[%clk
0:02:36.3]} 18... axb3 {[%clk 0:02:32.1]} 19. axb3 {[%clk 0:02:37.2]} 19... Ra5
{[%clk 0:02:12]} 20. Rxa5 {[%clk 0:01:56.5]} 20... Qxa5 {[%clk 0:02:12.9]} 21.
Qd3 {[%clk 0:01:57]} 21... g6 {[%clk 0:02:12.1]} 22. Qg3 {[%clk 0:01:47.7]}
22... Ra8 {[%clk 0:02:05.3]} 23. Qh4 {[%clk 0:01:42.9]} 23... Qd8 {[%clk
0:02:04.3]} 24. Qh6 {[%clk 0:01:41.7]} 24... Ra2 {[%clk 0:01:39.4]} 25. Bb1
{[%clk 0:01:41.5]} 25... Ra3 {[%clk 0:01:39.7]} 26. b4 {[%clk 0:01:28.1]} 26...
Ra4 {[%clk 0:01:24.5]} 27. b5 {[%clk 0:01:17.9]} 27... Rxc4 {[%clk 0:01:23]} 28.
bxc6 {[%clk 0:01:17.9]} 28... Rxc6 {[%clk 0:01:21.4]} 29. Be4 {[%clk 0:01:16.4]}
29... Rb6 {[%clk 0:01:16.1]} 30. Bf3 {[%clk 0:01:15.2]} 30... Rb5 {[%clk
0:01:05.6]} 31. Rc1 {[%clk 0:01:08.5]} 31... Bf8 {[%clk 0:00:28.3]} 32. Qf4
{[%clk 0:00:56]} 32... Bg7 {[%clk 0:00:16.3]} 33. Rc7 {[%clk 0:00:48.2]} 33...
h6 {[%clk 0:00:07.3]} 34. Qc1 {[%clk 0:00:46.7]} 34... Ne8 {[%clk 0:00:03.5]}
35. Rc8 {[%clk 0:00:37]} 35... Qd7 {[%clk 0:00:03.7]} 36. Qc7 {[%clk 0:00:37]}
36... Qxc7 {[%clk 0:00:03.3]} 37. Bxc7 {[%clk 0:00:36.6]} 37... Kf8 {[%clk
0:00:03.2]} 38. Bd6+ {[%clk 0:00:36.4]} 38... Kg8 {[%clk 0:00:03.2]} 39. Rxe8+
{[%clk 0:00:37]} 39... Kh7 {[%clk 0:00:03.7]} 40. Re7 {[%clk 0:00:36.3]} 40...
Kg8 {[%clk 0:00:02.9]} 41. Rxb7 {[%clk 0:00:35.5]} 41... Bxd4 {[%clk 0:00:03]}
1-0

[Event "*** SCC Grand Prix: Titled Tuesday Blitz"]
[Site "Chess.com"]
[Date "2020.06.23"]
[Round "1"]
[White "dey2580"]
[Black "NotFischer"]
[Result "1-0"]
[WhiteElo "2549"]
[BlackElo "2196"]
[TimeControl "180+1"]
[EndTime "10:07:16 PDT"]
[Termination "dey2580 won by resignation"]

1. d4 {[%clk 0:03:00.9]} 1... Nf6 {[%clk 0:02:59.3]} 2. Nf3 {[%clk 0:03:00.8]}
2... e6 {[%clk 0:02:59.6]} 3. e3 {[%clk 0:03:00.8]} 3... d5 {[%clk 0:02:59.6]}
4. c4 {[%clk 0:03:00.9]} 4... c6 {[%clk 0:02:58.4]} 5. Nc3 {[%clk 0:03:01.4]}
5... Nbd7 {[%clk 0:02:58.2]} 6. b3 {[%clk 0:03:01.2]} 6... Bd6 {[%clk
0:02:55.1]} 7. Bb2 {[%clk 0:03:01.1]} 7... O-O {[%clk 0:02:52.5]} 8. Be2 {[%clk
0:03:01.3]} 8... Re8 {[%clk 0:02:42.5]} 9. O-O {[%clk 0:03:01]} 9... a6 {[%clk
0:02:14.1]} 10. Qc2 {[%clk 0:02:54.8]} 10... b5 {[%clk 0:02:09.1]} 11. e4 {[%clk
0:02:50]} 11... dxe4 {[%clk 0:02:06.1]} 12. Nxe4 {[%clk 0:02:49.8]} 12... Be7
{[%clk 0:01:49.3]} 13. Nxf6+ {[%clk 0:02:34.1]} 13... Bxf6 {[%clk 0:01:45.4]}
14. Rad1 {[%clk 0:02:33.3]} 14... Qe7 {[%clk 0:01:40.2]} 15. Rfe1 {[%clk
0:02:32.6]} 15... Bb7 {[%clk 0:01:37]} 16. Bd3 {[%clk 0:02:26.4]} 16... g6
{[%clk 0:01:36.1]} 17. Be4 {[%clk 0:02:24.8]} 17... Rac8 {[%clk 0:01:33.7]} 18.
Ne5 {[%clk 0:02:18.5]} 18... Bg7 {[%clk 0:01:19.4]} 19. Bf3 {[%clk 0:02:18.5]}
19... Red8 {[%clk 0:01:15.6]} 20. Qe2 {[%clk 0:02:11.7]} 20... Nxe5 {[%clk
0:01:14.3]} 21. dxe5 {[%clk 0:02:11.6]} 21... c5 {[%clk 0:01:06.6]} 22. Bxb7
{[%clk 0:01:55.6]} 22... Qxb7 {[%clk 0:01:05.5]} 23. h4 {[%clk 0:01:55.8]} 23...
h5 {[%clk 0:00:59.9]} 24. g3 {[%clk 0:01:53.1]} 24... Qb8 {[%clk 0:00:42.2]} 25.
Qe4 {[%clk 0:01:48.4]} 25... Rxd1 {[%clk 0:00:40.7]} 26. Rxd1 {[%clk 0:01:49.3]}
26... Rd8 {[%clk 0:00:40.4]} 27. Rxd8+ {[%clk 0:00:56.5]} 27... Qxd8 {[%clk
0:00:41.3]} 28. cxb5 {[%clk 0:00:56.4]} 28... axb5 {[%clk 0:00:40.7]} 29. a4
{[%clk 0:00:56.1]} 29... Qb8 {[%clk 0:00:27.3]} 30. a5 {[%clk 0:00:49.8]} 30...
Bf8 {[%clk 0:00:26]} 31. Qc6 {[%clk 0:00:46.7]} 31... c4 {[%clk 0:00:22.4]} 32.
a6 {[%clk 0:00:45.4]} 32... Qa7 {[%clk 0:00:13.3]} 33. Qc8 {[%clk 0:00:37.9]}
33... Kg7 {[%clk 0:00:12.3]} 34. bxc4 {[%clk 0:00:28.7]} 34... bxc4 {[%clk
0:00:11.5]} 35. Qxc4 {[%clk 0:00:28.7]} 35... Bc5 {[%clk 0:00:11.6]} 36. Qe2
{[%clk 0:00:23.3]} 36... Qb6 {[%clk 0:00:11.3]} 37. Bc3 {[%clk 0:00:20.8]} 37...
Kf8 {[%clk 0:00:11.1]} 38. Kg2 {[%clk 0:00:19.7]} 38... Ke7 {[%clk 0:00:10.9]}
39. Qc4 {[%clk 0:00:17.8]} 39... Kd8 {[%clk 0:00:10.1]} 40. Qa4 {[%clk
0:00:14.7]} 40... Bxf2 {[%clk 0:00:07.5]} 41. Ba5 {[%clk 0:00:14.8]} 1-0

[Event "*** SCC Grand Prix: Titled Tuesday Blitz"]
[Site "Chess.com"]
[Date "2020.06.23"]
[Round "1"]
[White "Ladislav1969"]
[Black "gilbert_gm"]
[Result "0-1"]
[WhiteElo "2328"]
[BlackElo "2653"]
[TimeControl "180+1"]
[EndTime "10:07:17 PDT"]
[Termination "gilbert_gm won on time"]

1. e4 {[%clk 0:03:00.9]} 1... g6 {[%clk 0:02:58.9]} 2. d4 {[%clk 0:03:00.3]}
2... Nf6 {[%clk 0:02:58.4]} 3. Nc3 {[%clk 0:03:00.4]} 3... d5 {[%clk 0:02:58.1]}
4. e5 {[%clk 0:02:58.1]} 4... Ne4 {[%clk 0:02:57.8]} 5. Bd3 {[%clk 0:02:46.9]}
5... Nxc3 {[%clk 0:02:56.8]} 6. bxc3 {[%clk 0:02:46.8]} 6... c5 {[%clk
0:02:57.7]} 7. f4 {[%clk 0:02:40.8]} 7... Nc6 {[%clk 0:02:51.1]} 8. Be3 {[%clk
0:02:30]} 8... Qa5 {[%clk 0:02:45.6]} 9. Qd2 {[%clk 0:02:27.4]} 9... Bf5 {[%clk
0:02:36.1]} 10. Bxf5 {[%clk 0:02:09.1]} 10... gxf5 {[%clk 0:02:37]} 11. dxc5
{[%clk 0:02:09.1]} 11... e6 {[%clk 0:02:35.7]} 12. c4 {[%clk 0:02:06.9]} 12...
Qxd2+ {[%clk 0:02:32.9]} 13. Kxd2 {[%clk 0:02:04.9]} 13... dxc4 {[%clk
0:02:29.8]} 14. Kc3 {[%clk 0:01:57]} 14... O-O-O {[%clk 0:02:27.2]} 15. Kxc4
{[%clk 0:01:48.4]} 15... Rg8 {[%clk 0:02:23]} 16. g3 {[%clk 0:01:47.2]} 16...
Na5+ {[%clk 0:02:16.5]} 17. Kc3 {[%clk 0:01:41.7]} 17... Rd5 {[%clk 0:02:14.1]}
18. Kb4 {[%clk 0:01:22.4]} 18... b6 {[%clk 0:02:13.8]} 19. Nf3 {[%clk
0:01:16.1]} 19... Bxc5+ {[%clk 0:02:08.7]} 20. Bxc5 {[%clk 0:01:15.6]} 20...
Rxc5 {[%clk 0:02:09.6]} 21. Rhd1 {[%clk 0:01:07.3]} 21... Rxc2 {[%clk
0:02:02.8]} 22. Rac1 {[%clk 0:00:57.8]} 22... Rxc1 {[%clk 0:01:56.6]} 23. Rxc1+
{[%clk 0:00:57.9]} 23... Kb7 {[%clk 0:01:57.5]} 24. Ng5 {[%clk 0:00:57.8]} 24...
Rg7 {[%clk 0:01:44.6]} 25. Rd1 {[%clk 0:00:50.9]} 25... Kc7 {[%clk 0:01:38]} 26.
Rc1+ {[%clk 0:00:50.3]} 26... Kb7 {[%clk 0:01:35.1]} 27. Rd1 {[%clk 0:00:50.4]}
27... Nc6+ {[%clk 0:01:35.4]} 28. Kb5 {[%clk 0:00:43.9]} 28... a6+ {[%clk
0:01:31.9]} 29. Kc4 {[%clk 0:00:44.1]} 29... Kc7 {[%clk 0:01:30.7]} 30. Rd6
{[%clk 0:00:41.5]} 30... h6 {[%clk 0:01:28.7]} 31. Nf3 {[%clk 0:00:35.9]} 31...
Rg8 {[%clk 0:01:26.7]} 32. Nd4 {[%clk 0:00:23.7]} 32... Nxd4 {[%clk 0:01:19.2]}
33. Rxd4 {[%clk 0:00:23]} 33... Rd8 {[%clk 0:01:19.7]} 34. Rxd8 {[%clk
0:00:17.1]} 34... Kxd8 {[%clk 0:01:20.6]} 35. h3 {[%clk 0:00:16.9]} 35... h5
{[%clk 0:01:15.4]} 36. Kd3 {[%clk 0:00:12.5]} 36... Kd7 {[%clk 0:01:13.4]} 37.
a4 {[%clk 0:00:11.2]} 37... Kc6 {[%clk 0:01:09]} 38. Kd4 {[%clk 0:00:11.4]}
38... Kc7 {[%clk 0:00:50]} 39. Kc4 {[%clk 0:00:09.2]} 39... Kd7 {[%clk
0:00:49.2]} 40. Kc3 {[%clk 0:00:07.8]} 40... Kc6 {[%clk 0:00:47.2]} 41. Kd4
{[%clk 0:00:07.5]} 41... b5 {[%clk 0:00:46.6]} 42. a5 {[%clk 0:00:07.3]} 42...
b4 {[%clk 0:00:47.2]} 43. Kc4 {[%clk 0:00:07.2]} 43... b3 {[%clk 0:00:48.1]} 44.
Kxb3 {[%clk 0:00:06.4]} 44... Kb5 {[%clk 0:00:48.8]} 45. Kc3 {[%clk 0:00:03.8]}
45... Kxa5 {[%clk 0:00:47.1]} 46. Kc4 {[%clk 0:00:03.6]} 46... Kb6 {[%clk
0:00:47.1]} 47. Kd4 {[%clk 0:00:01.5]} 47... Kb5 {[%clk 0:00:45.1]} 48. g4
{[%clk 0:00:01.4]} 48... fxg4 {[%clk 0:00:43.1]} 0-1

[Event "*** SCC Grand Prix: Titled Tuesday Blitz"]
[Site "Chess.com"]
[Date "2020.06.23"]
[Round "1"]
[White "diamonds13"]
[Black "francyIM"]
[Result "0-1"]
[WhiteElo "2262"]
[BlackElo "2599"]
[TimeControl "180+1"]
[EndTime "10:07:17 PDT"]
[Termination "francyIM won by resignation"]

1. d4 {[%clk 0:03:00.7]} 1... Nf6 {[%clk 0:02:59.2]} 2. c4 {[%clk 0:03:00.6]}
2... e6 {[%clk 0:02:57.6]} 3. Nc3 {[%clk 0:03:00.1]} 3... Bb4 {[%clk 0:02:57.1]}
4. e3 {[%clk 0:02:59.5]} 4... O-O {[%clk 0:02:56.4]} 5. Bd2 {[%clk 0:02:59.2]}
5... b6 {[%clk 0:02:54.6]} 6. Nf3 {[%clk 0:02:59]} 6... Bb7 {[%clk 0:02:54.1]}
7. Rc1 {[%clk 0:02:57.6]} 7... d5 {[%clk 0:02:53.5]} 8. cxd5 {[%clk 0:02:57]}
8... exd5 {[%clk 0:02:53.2]} 9. Bd3 {[%clk 0:02:57.5]} 9... Be7 {[%clk
0:02:50.2]} 10. O-O {[%clk 0:02:56.8]} 10... c5 {[%clk 0:02:49.8]} 11. Ne5
{[%clk 0:02:56]} 11... Nc6 {[%clk 0:02:47.3]} 12. f4 {[%clk 0:02:53.7]} 12...
cxd4 {[%clk 0:02:42.6]} 13. Nxc6 {[%clk 0:02:53.6]} 13... Bxc6 {[%clk
0:02:41.5]} 14. exd4 {[%clk 0:02:53.6]} 14... Re8 {[%clk 0:02:38.2]} 15. Qf3
{[%clk 0:02:52.1]} 15... Qd7 {[%clk 0:02:38]} 16. f5 {[%clk 0:02:44.9]} 16...
Bb4 {[%clk 0:02:37.3]} 17. a3 {[%clk 0:02:43.3]} 17... Bxc3 {[%clk 0:02:36.2]}
18. bxc3 {[%clk 0:02:41.5]} 18... Bb5 {[%clk 0:02:33.4]} 19. Bg5 {[%clk
0:02:35.9]} 19... Ne4 {[%clk 0:02:31.1]} 20. Bxe4 {[%clk 0:02:30.3]} 20... dxe4
{[%clk 0:02:30.3]} 21. Qg4 {[%clk 0:02:28.5]} 21... Bxf1 {[%clk 0:02:26.5]} 22.
Bf6 {[%clk 0:02:24.7]} 22... g6 {[%clk 0:02:26]} 23. Rxf1 {[%clk 0:02:23.2]}
23... e3 {[%clk 0:02:24]} 24. Qh4 {[%clk 0:02:13.7]} 24... e2 {[%clk 0:02:22.4]}
25. Re1 {[%clk 0:02:05.5]} 25... Qxf5 {[%clk 0:02:20.6]} 26. g4 {[%clk
0:02:01.7]} 26... Qf3 {[%clk 0:02:11.1]} 27. Be5 {[%clk 0:01:53.2]} 27... f6
{[%clk 0:02:01.9]} 28. Qxf6 {[%clk 0:01:51.6]} 28... Qxf6 {[%clk 0:02:00.5]} 29.
Bxf6 {[%clk 0:01:51.6]} 29... Re3 {[%clk 0:02:00]} 30. d5 {[%clk 0:01:49.2]}
30... Re4 {[%clk 0:01:58.5]} 31. g5 {[%clk 0:01:46.8]} 31... Rc8 {[%clk
0:01:55.2]} 32. Kf2 {[%clk 0:01:46.2]} 32... Rc5 {[%clk 0:01:54.3]} 33. d6
{[%clk 0:01:39.4]} 33... Rd5 {[%clk 0:01:52.4]} 34. Be7 {[%clk 0:01:36.1]} 34...
Rd2 {[%clk 0:01:50.1]} 35. Kf3 {[%clk 0:01:34]} 35... Re6 {[%clk 0:01:49.4]} 36.
c4 {[%clk 0:01:29.9]} 36... Kf7 {[%clk 0:01:41.3]} 37. a4 {[%clk 0:01:28.8]}
37... Ke8 {[%clk 0:01:40.9]} 38. a5 {[%clk 0:01:27.8]} 38... Kd7 {[%clk
0:01:40.3]} 39. axb6 {[%clk 0:01:26.2]} 39... axb6 {[%clk 0:01:41.2]} 40. Kf2
{[%clk 0:01:26.3]} 40... Rd1 {[%clk 0:01:34]} 41. Rxe2 {[%clk 0:01:23.8]} 41...
Rxe2+ {[%clk 0:01:34.9]} 42. Kxe2 {[%clk 0:01:24]} 42... Rh1 {[%clk 0:01:35.1]}
43. Kd3 {[%clk 0:01:22.4]} 43... Rxh2 {[%clk 0:01:34.9]} 44. Kd4 {[%clk
0:01:22.7]} 44... Rf2 {[%clk 0:01:32.8]} 45. Ke5 {[%clk 0:01:21.9]} 45... Rf5+
{[%clk 0:01:32.4]} 46. Kd4 {[%clk 0:01:21.2]} 46... Kc6 {[%clk 0:01:25.8]} 47.
Ke4 {[%clk 0:00:37.8]} 47... b5 {[%clk 0:01:23.3]} 48. cxb5+ {[%clk 0:00:36.7]}
48... Rxb5 {[%clk 0:01:24.2]} 49. Kf4 {[%clk 0:00:36.6]} 49... Kd7 {[%clk
0:01:23.4]} 50. Kg4 {[%clk 0:00:36]} 50... Rb4+ {[%clk 0:01:21.3]} 51. Kf3
{[%clk 0:00:35.9]} 51... Ra4 {[%clk 0:01:19.8]} 52. Kg3 {[%clk 0:00:34.9]} 52...
Ke6 {[%clk 0:01:20]} 53. Kf3 {[%clk 0:00:34.6]} 53... Rc4 {[%clk 0:01:17.6]} 54.
Kg3 {[%clk 0:00:33.6]} 54... Rd4 {[%clk 0:01:10.7]} 55. Kh3 {[%clk 0:00:32.2]}
55... Kf5 {[%clk 0:01:10.7]} 56. Kg3 {[%clk 0:00:32.1]} 56... Rd3+ {[%clk
0:01:08.7]} 57. Kh4 {[%clk 0:00:32]} 57... Ke6 {[%clk 0:01:03.9]} 58. Kg4 {[%clk
0:00:31.5]} 58... Ke5 {[%clk 0:01:03.6]} 59. Kh4 {[%clk 0:00:29.7]} 59... Kf5
{[%clk 0:01:03.1]} 60. Bf8 {[%clk 0:00:28]} 60... Rd4+ {[%clk 0:01:02.6]} 61.
Kg3 {[%clk 0:00:27.4]} 61... Kxg5 {[%clk 0:01:02.6]} 62. Be7+ {[%clk 0:00:27.7]}
62... Kf5 {[%clk 0:01:02.3]} 63. Kf3 {[%clk 0:00:28.5]} 63... Ke6 {[%clk
0:01:00.9]} 64. Ke3 {[%clk 0:00:28.8]} 64... Rxd6 {[%clk 0:01:00.9]} 0-1

[Event "*** SCC Grand Prix: Titled Tuesday Blitz"]
[Site "Chess.com"]
[Date "2020.06.23"]
[Round "1"]
[White "Timerkhanov"]
[Black "ZverevLev"]
[Result "0-1"]
[WhiteElo "2631"]
[BlackElo "2334"]
[TimeControl "180+1"]
[EndTime "10:07:19 PDT"]
[Termination "ZverevLev won by resignation"]

1. d4 {[%clk 0:02:57.8]} 1... Nf6 {[%clk 0:02:57.7]} 2. Bg5 {[%clk 0:02:57.8]}
2... Ne4 {[%clk 0:02:46.8]} 3. Bf4 {[%clk 0:02:57.7]} 3... d5 {[%clk 0:02:46.3]}
4. f3 {[%clk 0:02:57.5]} 4... Nf6 {[%clk 0:02:45.1]} 5. e4 {[%clk 0:02:57.4]}
5... dxe4 {[%clk 0:02:44]} 6. Nc3 {[%clk 0:02:56.9]} 6... c6 {[%clk 0:02:27.9]}
7. fxe4 {[%clk 0:02:54.6]} 7... e6 {[%clk 0:02:26.7]} 8. Nf3 {[%clk 0:02:52.5]}
8... Be7 {[%clk 0:02:24.5]} 9. Qd2 {[%clk 0:02:51]} 9... O-O {[%clk 0:02:23.1]}
10. O-O-O {[%clk 0:02:48.5]} 10... Nbd7 {[%clk 0:02:23]} 11. h3 {[%clk
0:02:45.1]} 11... b5 {[%clk 0:02:21.3]} 12. Bd3 {[%clk 0:02:44.3]} 12... Nb6
{[%clk 0:02:18.5]} 13. g4 {[%clk 0:02:38.1]} 13... b4 {[%clk 0:02:16.6]} 14. Ne2
{[%clk 0:02:36.1]} 14... a5 {[%clk 0:02:14.7]} 15. Ng3 {[%clk 0:02:20.6]} 15...
a4 {[%clk 0:02:13.6]} 16. g5 {[%clk 0:02:20.1]} 16... Ne8 {[%clk 0:02:11.9]} 17.
h4 {[%clk 0:02:11.3]} 17... b3 {[%clk 0:02:11]} 18. a3 {[%clk 0:01:58.2]} 18...
Nd6 {[%clk 0:02:00.2]} 19. Bxd6 {[%clk 0:01:54.9]} 19... Qxd6 {[%clk 0:01:55.4]}
20. e5 {[%clk 0:01:54.7]} 20... Qb8 {[%clk 0:01:53.1]} 21. c3 {[%clk 0:01:53.9]}
21... Ba6 {[%clk 0:01:47]} 22. Ne4 {[%clk 0:01:52.5]} 22... Nc4 {[%clk
0:01:33.4]} 23. Bxc4 {[%clk 0:01:48.4]} 23... Bxc4 {[%clk 0:01:34.3]} 24. Nf6+
{[%clk 0:01:45.8]} 24... Kh8 {[%clk 0:01:32.2]} 25. Qf4 {[%clk 0:01:31.9]} 25...
Bxa3 {[%clk 0:01:02.1]} 26. Nd7 {[%clk 0:01:22.6]} 26... Bxb2+ {[%clk
0:01:01.1]} 27. Kd2 {[%clk 0:01:08.7]} 27... Qb5 {[%clk 0:00:58]} 28. Nxf8
{[%clk 0:01:06.4]} 28... Rxf8 {[%clk 0:00:54.3]} 29. g6 {[%clk 0:01:04.1]} 29...
Bd3 {[%clk 0:00:48.7]} 30. gxf7 {[%clk 0:00:43.6]} 30... Bxc3+ {[%clk
0:00:47.8]} 31. Ke3 {[%clk 0:00:36.7]} 31... Bf5 {[%clk 0:00:46.6]} 32. Qg5
{[%clk 0:00:32.8]} 32... b2 {[%clk 0:00:43.1]} 33. Qe7 {[%clk 0:00:32.6]} 33...
Bb4 {[%clk 0:00:40.8]} 34. Qe8 {[%clk 0:00:29.7]} 34... Bg6 {[%clk 0:00:32.5]}
35. Ng5 {[%clk 0:00:27.1]} 35... Rxe8 {[%clk 0:00:30.9]} 36. fxe8=Q+ {[%clk
0:00:26.3]} 36... Bxe8 {[%clk 0:00:30.3]} 37. Rhf1 {[%clk 0:00:27.2]} 37... Be7
{[%clk 0:00:27.4]} 38. Nxe6 {[%clk 0:00:27.1]} 38... Bg6 {[%clk 0:00:23.9]} 39.
Ng5 {[%clk 0:00:25.5]} 39... b1=Q {[%clk 0:00:23]} 40. Rxb1 {[%clk 0:00:24.6]}
40... Bxb1 {[%clk 0:00:22.7]} 41. Ne6 {[%clk 0:00:19.7]} 41... Qxf1 {[%clk
0:00:21.8]} 0-1

[Event "*** SCC Grand Prix: Titled Tuesday Blitz"]
[Site "Chess.com"]
[Date "2020.06.23"]
[Round "1"]
[White "Resignify"]
[Black "Fh2411"]
[Result "0-1"]
[WhiteElo "2153"]
[BlackElo "2526"]
[TimeControl "180+1"]
[EndTime "10:07:19 PDT"]
[Termination "Fh2411 won on time"]

1. Nf3 {[%clk 0:03:00.9]} 1... d5 {[%clk 0:02:48.8]} 2. g3 {[%clk 0:03:00.6]}
2... c6 {[%clk 0:02:47.7]} 3. Bg2 {[%clk 0:03:00.6]} 3... Nf6 {[%clk 0:02:48.2]}
4. d3 {[%clk 0:03:00.6]} 4... Bg4 {[%clk 0:02:48.6]} 5. Nbd2 {[%clk 0:02:59]}
5... Nbd7 {[%clk 0:02:49]} 6. O-O {[%clk 0:02:58.7]} 6... e5 {[%clk 0:02:44]} 7.
h3 {[%clk 0:02:56.4]} 7... Bh5 {[%clk 0:02:40]} 8. e4 {[%clk 0:02:44.2]} 8...
Bd6 {[%clk 0:02:39.6]} 9. Qe2 {[%clk 0:02:40.6]} 9... O-O {[%clk 0:02:39]} 10.
g4 {[%clk 0:02:15.6]} 10... Bg6 {[%clk 0:02:36.6]} 11. exd5 {[%clk 0:01:50.3]}
11... cxd5 {[%clk 0:02:23]} 12. Nh4 {[%clk 0:01:49]} 12... Nb6 {[%clk
0:02:14.1]} 13. Ndf3 {[%clk 0:01:18.3]} 13... Re8 {[%clk 0:01:58.5]} 14. Nxg6
{[%clk 0:01:15.1]} 14... hxg6 {[%clk 0:01:57.6]} 15. Bg5 {[%clk 0:01:10.7]}
15... Rc8 {[%clk 0:01:54.6]} 16. c3 {[%clk 0:01:03.9]} 16... Bb8 {[%clk
0:01:51.9]} 17. Bh4 {[%clk 0:00:56.3]} 17... Qd7 {[%clk 0:01:32.2]} 18. Rfe1
{[%clk 0:00:49]} 18... Re7 {[%clk 0:01:25.1]} 19. Qc2 {[%clk 0:00:32.1]} 19...
Rce8 {[%clk 0:01:23]} 20. Re2 {[%clk 0:00:23.9]} 20... Re6 {[%clk 0:01:00.1]}
21. Rae1 {[%clk 0:00:22]} 21... e4 {[%clk 0:01:00]} 22. Nd4 {[%clk 0:00:19.4]}
22... R6e7 {[%clk 0:00:54.6]} 23. dxe4 {[%clk 0:00:18.7]} 23... dxe4 {[%clk
0:00:45.1]} 24. Qc1 {[%clk 0:00:16.2]} 24... Nbd5 {[%clk 0:00:35.9]} 25. Bg3
{[%clk 0:00:12.7]} 25... Bc7 {[%clk 0:00:22.9]} 26. Qc2 {[%clk 0:00:09.6]} 26...
e3 {[%clk 0:00:21.8]} 27. Bxc7 {[%clk 0:00:07.4]} 27... Qxc7 {[%clk 0:00:22.2]}
28. fxe3 {[%clk 0:00:03.9]} 28... Nxe3 {[%clk 0:00:21.8]} 29. Qd3 {[%clk
0:00:02.4]} 29... Nxg2 {[%clk 0:00:17.9]} 30. Rxe7 {[%clk 0:00:03.3]} 30... Rxe7
{[%clk 0:00:18.6]} 31. Rxe7 {[%clk 0:00:03.8]} 31... Qxe7 {[%clk 0:00:19.5]} 32.
Kxg2 {[%clk 0:00:04.1]} 32... Qd6 {[%clk 0:00:17.4]} 33. Qe3 {[%clk 0:00:01.9]}
33... Nd5 {[%clk 0:00:16.4]} 34. Qf3 {[%clk 0:00:01.7]} 34... Nf4+ {[%clk
0:00:15.5]} 35. Kf2 {[%clk 0:00:01.1]} 35... g5 {[%clk 0:00:15.2]} 0-1